[Event "December 12 Late 2023"]
[Site "https://www.chess.com"]
[Date "2023.12.12"]
[Round "8"]
[White "Tokhirjonova, Gulrukhbegim"]
[Black "Krzywda, Andrzej"]
[Result "1-0"]
[Board "62"]
[TimeControl "180+1"]
[WhiteFideId "14203626"]
[BlackFideId "1114565"]
[WhiteElo "2632"]
[BlackElo "2505"]
[WhiteTeam "USA"]
[BlackTeam "POL"]
[WhiteClock "0:00:18"]
[BlackClock "0:00:00"]

1. d4 {[%clk 0:03:00]}  d5 {[%clk 0:02:59]} 2. Nc3 {[%clk 0:03:00]}  Nf6 {[%clk 0:02:59]} 3. Bf4 {[%clk 0:03:00]}  c5 {[%clk 0:02:40]} 4. e3 {[%clk 0:02:54]}  cxd4 {[%clk 0:02:40]} 5. exd4 {[%clk 0:02:54]}  Bg4 {[%clk 0:02:40]} 6. f3 {[%clk 0:02:51]}  Bd7 {[%clk 0:02:39]} 7. Bd3 {[%clk 0:02:44]}  e6 {[%clk 0:02:37]} 8. Nge2 {[%clk 0:02:45]}  Nc6 {[%clk 0:02:31]} 9. Nb5 {[%clk 0:02:42]}  Rc8 {[%clk 0:02:29]} 10. Nd6+ {[%clk 0:02:40]}  Bxd6 {[%clk 0:02:29]} 11. Bxd6 {[%clk 0:02:41]}  Qb6 {[%clk 0:02:29]} 12. Bc5 {[%clk 0:02:35]}  Qa5+ {[%clk 0:02:23]} 13. c3 {[%clk 0:02:34]}  Nb8 {[%clk 0:02:01]} 14. O-O {[%clk 0:02:23]}  Bb5 {[%clk 0:01:58]} 15. Nf4 {[%clk 0:02:18]}  Bxd3 {[%clk 0:01:52]} 16. Nxd3 {[%clk 0:02:18]}  Nc6 {[%clk 0:01:48]} 17. Re1 {[%clk 0:02:18]}  Nd7 {[%clk 0:01:46]} 18. Ba3 {[%clk 0:02:12]}  Qc7 {[%clk 0:01:45]} 19. Qd2 {[%clk 0:02:10]}  h6 {[%clk 0:01:37]} 20. Nf4 {[%clk 0:02:08]}  Nf6 {[%clk 0:01:33]} 21. Qe3 {[%clk 0:01:57]}  Ne7 {[%clk 0:01:32]} 22. Nxe6 {[%clk 0:01:49]}  fxe6 {[%clk 0:01:24]} 23. Qxe6 {[%clk 0:01:49]}  Ng8 {[%clk 0:01:16]} 24. Qxd5 {[%clk 0:01:30]}  Qd7 {[%clk 0:01:10]} 25. Qh5+ {[%clk 0:01:29]}  Kd8 {[%clk 0:01:07]} 26. Re5 {[%clk 0:01:25]}  Nf6 {[%clk 0:01:07]} 27. Qf7 {[%clk 0:01:24]}  Ned5 {[%clk 0:00:50]} 28. Qg6 {[%clk 0:01:21]}  Rc6 {[%clk 0:00:46]} 29. Rae1 {[%clk 0:01:18]}  Re8 {[%clk 0:00:24]} 30. Qd3 {[%clk 0:00:55]}  Rce6 {[%clk 0:00:21]} 31. g3 {[%clk 0:00:38]}  Kc8 {[%clk 0:00:18]} 32. c4 {[%clk 0:00:34]}  Nc7 {[%clk 0:00:15]} 33. f4 {[%clk 0:00:33]}  Kb8 {[%clk 0:00:12]} 34. d5 {[%clk 0:00:33]}  Rxe5 {[%clk 0:00:11]} 35. fxe5 {[%clk 0:00:33]}  Ng4 {[%clk 0:00:06]} 36. Bd6 {[%clk 0:00:30]}  Kc8 {[%clk 0:00:04]} 37. Qe2 {[%clk 0:00:26]}  h5 {[%clk 0:00:04]} 38. h3 {[%clk 0:00:22]}  Nh6 {[%clk 0:00:04]} 39. Qxh5 {[%clk 0:00:20]}  Rh8 {[%clk 0:00:04]} 40. Bxc7 {[%clk 0:00:17]}  Kxc7 {[%clk 0:00:04]} 41. e6 {[%clk 0:00:17]}  Qd6 {[%clk 0:00:04]} 42. Qe5 {[%clk 0:00:18]}  Qxe5 {[%clk 0:00:03]} 43. Rxe5 {[%clk 0:00:18]}  Kd6 {[%clk 0:00:03]} 44. Rg5 {[%clk 0:00:18]}  Rg8 {[%clk 0:00:03]} 45. b4 {[%clk 0:00:18]}  Ke7 {[%clk 0:00:03]} 46. c5 {[%clk 0:00:18]}  g6 {[%clk 0:00:02]} 47. Re5 {[%clk 0:00:17]}  Rg7 {[%clk 0:00:02]} 48. d6+ {[%clk 0:00:18]}  Kf6 {[%clk 0:00:03]} 49. e7 {[%clk 0:00:16]}  Rg8 {[%clk 0:00:01]} 50. e8=Q {[%clk 0:00:17]}  Rxe8 {[%clk 0:00:01]} 51. Rxe8 {[%clk 0:00:18]}  Nf5 {[%clk 0:00:02]} 52. Rb8 {[%clk 0:00:18]}  Nxg3 {[%clk 0:00:02]} 53. Rxb7 {[%clk 0:00:19]}  Ne2+ {[%clk 0:00:02]} 54. Kf2 {[%clk 0:00:19]}  Nc3 {[%clk 0:00:01]} 55. d7 {[%clk 0:00:19]}  Ne4+ {[%clk 0:00:01]} 56. Ke3 {[%clk 0:00:20]}  Ng5 {[%clk 0:00:01]} 57. d8=Q+ {[%clk 0:00:20]}  Kf5 {[%clk 0:00:02]} 58. Qd5+ {[%clk 0:00:19]}  Kf6 {[%clk 0:00:00]} 59. Rxa7 {[%clk 0:00:18]} 1-0

[Event "December 12 Late 2023"]
[Site "https://www.chess.com"]
[Date "2023.12.12"]
[Round "8"]
[White "Hajiyev, Kanan"]
[Black "Chocenka, Dmitrijus"]
[Result "1-0"]
[Board "63"]
[TimeControl "180+1"]
[WhiteFideId "13404148"]
[BlackFideId "12802336"]
[WhiteElo "2576"]
[BlackElo "2499"]
[WhiteTeam "AZE"]
[BlackTeam "LTU"]
[WhiteClock "0:00:44"]
[BlackClock "0:01:00"]

1. d4 {[%clk 0:03:00]}  Nf6 {[%clk 0:02:59]} 2. Nf3 {[%clk 0:03:01]}  g6 {[%clk 0:03:00]} 3. g3 {[%clk 0:03:01]}  Bg7 {[%clk 0:03:00]} 4. Bg2 {[%clk 0:03:02]}  O-O {[%clk 0:03:01]} 5. O-O {[%clk 0:03:03]}  d6 {[%clk 0:03:00]} 6. b3 {[%clk 0:03:03]}  c5 {[%clk 0:02:59]} 7. Bb2 {[%clk 0:03:03]}  Ne4 {[%clk 0:02:59]} 8. c4 {[%clk 0:03:02]}  Nc6 {[%clk 0:02:58]} 9. Nbd2 {[%clk 0:03:03]}  Bf5 {[%clk 0:02:42]} 10. e3 {[%clk 0:03:02]}  d5 {[%clk 0:02:34]} 11. cxd5 {[%clk 0:03:00]}  Nb4 {[%clk 0:02:28]} 12. g4 {[%clk 0:02:22]}  Nxd2 {[%clk 0:02:21]} 13. Qxd2 {[%clk 0:01:52]}  Bxg4 {[%clk 0:02:19]} 14. Ne5 {[%clk 0:01:33]}  Bxe5 {[%clk 0:01:56]} 15. dxe5 {[%clk 0:01:31]}  Rc8 {[%clk 0:01:46]} 16. a3 {[%clk 0:01:29]}  Na6 {[%clk 0:01:37]} 17. h3 {[%clk 0:01:29]}  Bf5 {[%clk 0:01:30]} 18. e4 {[%clk 0:01:23]}  Bd7 {[%clk 0:01:30]} 19. e6 {[%clk 0:01:01]}  fxe6 {[%clk 0:01:24]} 20. Qh6 {[%clk 0:01:00]}  Rf7 {[%clk 0:01:22]} 21. Rad1 {[%clk 0:00:54]}  Qf8 {[%clk 0:01:16]} 22. Qe3 {[%clk 0:00:46]}  exd5 {[%clk 0:01:12]} 23. exd5 {[%clk 0:00:45]}  Qh6 {[%clk 0:01:00]} 24. Qxh6 {[%clk 0:00:44]} 1-0

[Event "December 12 Late 2023"]
[Site "https://www.chess.com"]
[Date "2023.12.12"]
[Round "8"]
[White "Herman, Matthew"]
[Black "Asish Panda"]
[Result "0-1"]
[Board "64"]
[TimeControl "180+1"]
[WhiteFideId "2028964"]
[BlackFideId "45012458"]
[WhiteElo "2494"]
[BlackElo "2536"]
[WhiteTeam "USA"]
[BlackTeam "IND"]
[WhiteClock "0:00:00"]
[BlackClock "0:00:42"]

1. e4 {[%clk 0:03:00]}  e6 {[%clk 0:02:59]} 2. d4 {[%clk 0:03:00]}  d5 {[%clk 0:02:59]} 3. Nd2 {[%clk 0:03:01]}  c5 {[%clk 0:02:59]} 4. exd5 {[%clk 0:03:01]}  Qxd5 {[%clk 0:03:00]} 5. Ngf3 {[%clk 0:03:01]}  cxd4 {[%clk 0:03:01]} 6. Bc4 {[%clk 0:03:02]}  Qd7 {[%clk 0:03:01]} 7. O-O {[%clk 0:03:01]}  Nc6 {[%clk 0:03:02]} 8. Re1 {[%clk 0:02:59]}  Nf6 {[%clk 0:03:03]} 9. Ne4 {[%clk 0:03:00]}  Be7 {[%clk 0:02:59]} 10. Bf4 {[%clk 0:02:52]}  O-O {[%clk 0:02:56]} 11. Ne5 {[%clk 0:02:35]}  Nxe5 {[%clk 0:02:48]} 12. Bxe5 {[%clk 0:02:36]}  Nxe4 {[%clk 0:02:38]} 13. Rxe4 {[%clk 0:02:35]}  Qc6 {[%clk 0:02:22]} 14. Bd3 {[%clk 0:01:33]}  f5 {[%clk 0:02:06]} 15. Rxd4 {[%clk 0:01:27]}  Bc5 {[%clk 0:02:00]} 16. Rh4 {[%clk 0:01:17]}  Qd5 {[%clk 0:01:52]} 17. Qh5 {[%clk 0:00:44]}  Qxe5 {[%clk 0:01:43]} 18. Qxh7+ {[%clk 0:00:42]}  Kf7 {[%clk 0:01:44]} 19. Rh6 {[%clk 0:00:36]}  Bxf2+ {[%clk 0:01:36]} 20. Kh1 {[%clk 0:00:35]}  Ke7 {[%clk 0:01:15]} 21. Rg6 {[%clk 0:00:26]}  Rf7 {[%clk 0:01:13]} 22. Qg8 {[%clk 0:00:16]}  b6 {[%clk 0:01:01]} 23. Bc4 {[%clk 0:00:08]}  Bb7 {[%clk 0:00:52]} 24. Qh7 {[%clk 0:00:08]}  Bd5 {[%clk 0:00:49]} 25. Bxd5 {[%clk 0:00:06]}  exd5 {[%clk 0:00:49]} 26. Rf1 {[%clk 0:00:01]}  Bc5 {[%clk 0:00:47]} 27. Qh5 {[%clk 0:00:00]}  Bd6 {[%clk 0:00:42]} 0-1

[Event "December 12 Late 2023"]
[Site "https://www.chess.com"]
[Date "2023.12.12"]
[Round "8"]
[White "Bold, Andre"]
[Black "Reprintsev, Alexander"]
[Result "1/2-1/2"]
[Board "67"]
[TimeControl "180+1"]
[WhiteFideId "16208471"]
[BlackFideId "14100541"]
[WhiteElo "2448"]
[BlackElo "2515"]
[WhiteTeam "GER"]
[BlackTeam "UKR"]
[WhiteClock "0:00:06"]
[BlackClock "0:00:02"]

1. Nf3 {[%clk 0:03:00]}  Nc6 {[%clk 0:02:50]} 2. d4 {[%clk 0:03:00]}  d5 {[%clk 0:02:50]} 3. Bf4 {[%clk 0:02:59]}  Bg4 {[%clk 0:02:49]} 4. Nbd2 {[%clk 0:02:56]}  e6 {[%clk 0:02:49]} 5. e3 {[%clk 0:02:55]}  Bd6 {[%clk 0:02:49]} 6. c3 {[%clk 0:02:53]}  Bxf4 {[%clk 0:02:47]} 7. exf4 {[%clk 0:02:53]}  Qd6 {[%clk 0:02:47]} 8. g3 {[%clk 0:02:52]}  O-O-O {[%clk 0:02:47]} 9. Bg2 {[%clk 0:02:52]}  f6 {[%clk 0:02:47]} 10. h3 {[%clk 0:02:25]}  Bh5 {[%clk 0:02:41]} 11. O-O {[%clk 0:02:13]}  e5 {[%clk 0:02:30]} 12. fxe5 {[%clk 0:02:13]}  fxe5 {[%clk 0:02:27]} 13. dxe5 {[%clk 0:02:13]}  Nxe5 {[%clk 0:02:26]} 14. g4 {[%clk 0:02:13]}  Bg6 {[%clk 0:02:25]} 15. Nxe5 {[%clk 0:02:13]}  Qxe5 {[%clk 0:02:25]} 16. Nf3 {[%clk 0:02:13]}  Qf4 {[%clk 0:02:20]} 17. Qd4 {[%clk 0:02:12]}  Qxd4 {[%clk 0:02:17]} 18. Nxd4 {[%clk 0:02:13]}  Nf6 {[%clk 0:02:16]} 19. Rfe1 {[%clk 0:02:04]}  h5 {[%clk 0:02:11]} 20. g5 {[%clk 0:01:58]}  Ne4 {[%clk 0:02:11]} 21. Bxe4 {[%clk 0:01:56]}  Bxe4 {[%clk 0:02:10]} 22. f3 {[%clk 0:01:56]}  Bd3 {[%clk 0:02:05]} 23. Re3 {[%clk 0:01:52]}  Bg6 {[%clk 0:02:05]} 24. Rae1 {[%clk 0:01:49]}  Rd7 {[%clk 0:02:04]} 25. Re6 {[%clk 0:01:43]}  Bf7 {[%clk 0:01:59]} 26. R6e5 {[%clk 0:01:34]}  c5 {[%clk 0:01:35]} 27. Nf5 {[%clk 0:01:30]}  g6 {[%clk 0:01:28]} 28. Nh6 {[%clk 0:01:24]}  d4 {[%clk 0:01:21]} 29. cxd4 {[%clk 0:01:19]}  cxd4 {[%clk 0:01:21]} 30. Re7 {[%clk 0:01:05]}  Bxa2 {[%clk 0:01:15]} 31. Rxd7 {[%clk 0:01:03]}  Kxd7 {[%clk 0:01:12]} 32. Rd1 {[%clk 0:01:03]}  Ke6 {[%clk 0:01:11]} 33. Rxd4 {[%clk 0:01:03]}  Bd5 {[%clk 0:01:09]} 34. f4 {[%clk 0:01:01]}  Rf8 {[%clk 0:01:07]} 35. Kf2 {[%clk 0:00:54]}  b5 {[%clk 0:01:00]} 36. Ke3 {[%clk 0:00:54]}  a5 {[%clk 0:00:59]} 37. f5+ {[%clk 0:00:48]}  gxf5 {[%clk 0:00:59]} 38. Kf4 {[%clk 0:00:49]}  Bc4 {[%clk 0:00:52]} 39. g6 {[%clk 0:00:45]}  Kf6 {[%clk 0:00:52]} 40. Rd6+ {[%clk 0:00:45]}  Ke7 {[%clk 0:00:51]} 41. g7 {[%clk 0:00:37]}  Ra8 {[%clk 0:00:36]} 42. Nxf5+ {[%clk 0:00:25]}  Kf7 {[%clk 0:00:36]} 43. Rd7+ {[%clk 0:00:25]}  Kg6 {[%clk 0:00:33]} 44. Rc7 {[%clk 0:00:22]}  Ba2 {[%clk 0:00:20]} 45. h4 {[%clk 0:00:15]}  b4 {[%clk 0:00:17]} 46. Rc6+ {[%clk 0:00:15]}  Kf7 {[%clk 0:00:17]} 47. Kg5 {[%clk 0:00:15]}  a4 {[%clk 0:00:16]} 48. Rc7+ {[%clk 0:00:16]}  Ke6 {[%clk 0:00:15]} 49. Re7+ {[%clk 0:00:14]}  Kd5 {[%clk 0:00:14]} 50. Nh6 {[%clk 0:00:13]}  Kd4 {[%clk 0:00:14]} 51. Rd7+ {[%clk 0:00:11]}  Ke3 {[%clk 0:00:12]} 52. Rb7 {[%clk 0:00:10]}  a3 {[%clk 0:00:09]} 53. Rxb4 {[%clk 0:00:10]}  axb2 {[%clk 0:00:08]} 54. Rxb2 {[%clk 0:00:11]}  Ra5+ {[%clk 0:00:08]} 55. Kg6 {[%clk 0:00:10]}  Ra6+ {[%clk 0:00:08]} 56. Kh7 {[%clk 0:00:10]}  Bd5 {[%clk 0:00:08]} 57. Rb8 {[%clk 0:00:05]}  Ra4 {[%clk 0:00:07]} 58. Rd8 {[%clk 0:00:03]}  Ba2 {[%clk 0:00:06]} 59. g8=Q {[%clk 0:00:03]}  Bxg8+ {[%clk 0:00:06]} 60. Nxg8 {[%clk 0:00:04]}  Rxh4 {[%clk 0:00:04]} 61. Kg6 {[%clk 0:00:05]}  Rh1 {[%clk 0:00:04]} 62. Nf6 {[%clk 0:00:05]}  h4 {[%clk 0:00:04]} 63. Re8+ {[%clk 0:00:05]}  Kf3 {[%clk 0:00:03]} 64. Kg5 {[%clk 0:00:06]}  h3 {[%clk 0:00:03]} 65. Ra8 {[%clk 0:00:04]}  h2 {[%clk 0:00:03]} 66. Ra3+ {[%clk 0:00:05]}  Ke2 {[%clk 0:00:04]} 67. Ra2+ {[%clk 0:00:05]}  Kd3 {[%clk 0:00:04]} 68. Ng4 {[%clk 0:00:05]}  Kc3 {[%clk 0:00:02]} 69. Nxh2 {[%clk 0:00:04]}  Rg1+ {[%clk 0:00:02]} 70. Ng4 {[%clk 0:00:04]}  Kb3 {[%clk 0:00:03]} 71. Rh2 {[%clk 0:00:04]}  Rb1 {[%clk 0:00:04]} 72. Kf4 {[%clk 0:00:04]}  Rc1 {[%clk 0:00:04]} 73. Ne5 {[%clk 0:00:04]}  Rc2 {[%clk 0:00:04]} 74. Rh8 {[%clk 0:00:04]}  Rg2 {[%clk 0:00:04]} 75. Ke4 {[%clk 0:00:04]}  Kb4 {[%clk 0:00:04]} 76. Kd4 {[%clk 0:00:04]}  Rd2+ {[%clk 0:00:04]} 77. Nd3+ {[%clk 0:00:04]}  Kb5 {[%clk 0:00:04]} 78. Rb8+ {[%clk 0:00:04]}  Kc6 {[%clk 0:00:04]} 79. Rc8+ {[%clk 0:00:05]}  Kd7 {[%clk 0:00:04]} 80. Rc3 {[%clk 0:00:06]}  Rh2 {[%clk 0:00:04]} 81. Kd5 {[%clk 0:00:06]}  Rd2 {[%clk 0:00:03]} 82. Ra3 {[%clk 0:00:06]}  Ke7 {[%clk 0:00:03]} 83. Ra7+ {[%clk 0:00:05]}  Kf6 {[%clk 0:00:03]} 84. Ke4 {[%clk 0:00:06]}  Kg5 {[%clk 0:00:03]} 85. Ra5+ {[%clk 0:00:05]}  Kf6 {[%clk 0:00:03]} 86. Ke3 {[%clk 0:00:05]}  Rd1 {[%clk 0:00:02]} 87. Nf4 {[%clk 0:00:05]}  Re1+ {[%clk 0:00:02]} 88. Kf3 {[%clk 0:00:06]}  Rb1 {[%clk 0:00:02]} 89. Ra6+ {[%clk 0:00:05]}  Ke7 {[%clk 0:00:03]} 90. Ke4 {[%clk 0:00:05]}  Rb5 {[%clk 0:00:03]} 91. Nd5+ {[%clk 0:00:05]}  Kf7 {[%clk 0:00:03]} 92. Ke5 {[%clk 0:00:06]}  Rb1 {[%clk 0:00:04]} 93. Rf6+ {[%clk 0:00:06]}  Kg7 {[%clk 0:00:04]} 94. Rf4 {[%clk 0:00:06]}  Re1+ {[%clk 0:00:04]} 95. Kf5 {[%clk 0:00:06]}  Ra1 {[%clk 0:00:03]} 96. Rg4+ {[%clk 0:00:06]}  Kf7 {[%clk 0:00:03]} 97. Rg6 {[%clk 0:00:06]}  Ra5 {[%clk 0:00:03]} 98. Rf6+ {[%clk 0:00:06]}  Kg7 {[%clk 0:00:02]} 99. Rg6+ {[%clk 0:00:05]}  Kf7 {[%clk 0:00:03]} 100. Rd6 {[%clk 0:00:06]}  Ra1 {[%clk 0:00:02]} 101. Rd7+ {[%clk 0:00:06]}  Kf8 {[%clk 0:00:01]} 102. Kf6 {[%clk 0:00:04]}  Rf1+ {[%clk 0:00:02]} 103. Ke6 {[%clk 0:00:04]}  Re1+ {[%clk 0:00:02]} 104. Kd6 {[%clk 0:00:05]}  Kg8 {[%clk 0:00:02]} 105. Rb7 {[%clk 0:00:05]}  Kf8 {[%clk 0:00:02]} 106. Ra7 {[%clk 0:00:05]}  Re2 {[%clk 0:00:01]} 107. Nf6 {[%clk 0:00:04]}  Re1 {[%clk 0:00:01]} 108. Rb7 {[%clk 0:00:02]}  Rd1+ {[%clk 0:00:01]} 109. Ke6 {[%clk 0:00:03]}  Re1+ {[%clk 0:00:02]} 110. Kf5 {[%clk 0:00:03]}  Rf1+ {[%clk 0:00:03]} 111. Ke5 {[%clk 0:00:02]}  Re1+ {[%clk 0:00:03]} 112. Ne4 {[%clk 0:00:03]}  Re2 {[%clk 0:00:03]} 113. Kf5 {[%clk 0:00:04]}  Re1 {[%clk 0:00:03]} 114. Kf6 {[%clk 0:00:04]}  Rf1+ {[%clk 0:00:03]} 115. Ke6 {[%clk 0:00:04]}  Re1 {[%clk 0:00:04]} 116. Rb8+ {[%clk 0:00:04]}  Kg7 {[%clk 0:00:03]} 117. Ke5 {[%clk 0:00:05]}  Kg6 {[%clk 0:00:03]} 118. Rb7 {[%clk 0:00:06]}  Kh6 {[%clk 0:00:02]} 119. Rb8 {[%clk 0:00:06]} 1/2-1/2

[Event "December 12 Late 2023"]
[Site "https://www.chess.com"]
[Date "2023.12.12"]
[Round "8"]
[White "Chylewski, Patryk"]
[Black "Todev, Simeon"]
[Result "1-0"]
[Board "68"]
[TimeControl "180+1"]
[WhiteFideId "1186191"]
[BlackFideId "2925133"]
[WhiteElo "2509"]
[BlackElo "2360"]
[WhiteTeam "POL"]
[BlackTeam "BUL"]
[WhiteClock "0:00:50"]
[BlackClock "0:01:20"]

1. Nf3 {[%clk 0:03:00]}  c5 {[%clk 0:03:00]} 2. e4 {[%clk 0:02:59]}  Nc6 {[%clk 0:02:59]} 3. d3 {[%clk 0:02:54]}  e6 {[%clk 0:02:55]} 4. g3 {[%clk 0:02:50]}  g6 {[%clk 0:02:53]} 5. Bg2 {[%clk 0:02:46]}  Bg7 {[%clk 0:02:54]} 6. O-O {[%clk 0:02:46]}  Nge7 {[%clk 0:02:54]} 7. c3 {[%clk 0:02:39]}  O-O {[%clk 0:02:50]} 8. Be3 {[%clk 0:02:37]}  b6 {[%clk 0:02:50]} 9. d4 {[%clk 0:02:31]}  cxd4 {[%clk 0:02:47]} 10. Nxd4 {[%clk 0:02:28]}  Nxd4 {[%clk 0:02:42]} 11. Bxd4 {[%clk 0:02:29]}  Bb7 {[%clk 0:02:41]} 12. Bxg7 {[%clk 0:02:26]}  Kxg7 {[%clk 0:02:42]} 13. Qd4+ {[%clk 0:02:26]}  Kg8 {[%clk 0:02:38]} 14. Rd1 {[%clk 0:02:26]}  d5 {[%clk 0:02:27]} 15. Nd2 {[%clk 0:02:10]}  dxe4 {[%clk 0:02:20]} 16. Nxe4 {[%clk 0:02:09]}  Qxd4 {[%clk 0:02:21]} 17. Rxd4 {[%clk 0:02:10]}  Kg7 {[%clk 0:02:17]} 18. Rd7 {[%clk 0:02:06]}  Bxe4 {[%clk 0:02:16]} 19. Bxe4 {[%clk 0:02:07]}  Rae8 {[%clk 0:02:05]} 20. Rxa7 {[%clk 0:02:06]}  Nd5 {[%clk 0:02:03]} 21. Bxd5 {[%clk 0:02:00]}  exd5 {[%clk 0:02:02]} 22. Kf1 {[%clk 0:02:00]}  Rd8 {[%clk 0:01:58]} 23. Rd1 {[%clk 0:01:59]}  Rd6 {[%clk 0:01:58]} 24. Ra4 {[%clk 0:01:53]}  Rfd8 {[%clk 0:01:56]} 25. Rad4 {[%clk 0:01:52]}  Kf6 {[%clk 0:01:55]} 26. c4 {[%clk 0:01:51]}  Ke6 {[%clk 0:01:54]} 27. Rxd5 {[%clk 0:01:48]}  Rxd5 {[%clk 0:01:51]} 28. Rxd5 {[%clk 0:01:49]}  Rxd5 {[%clk 0:01:51]} 29. cxd5+ {[%clk 0:01:49]}  Kxd5 {[%clk 0:01:52]} 30. Ke2 {[%clk 0:01:49]}  Kd4 {[%clk 0:01:50]} 31. Kd2 {[%clk 0:01:41]}  g5 {[%clk 0:01:46]} 32. Kc2 {[%clk 0:01:27]}  Ke4 {[%clk 0:01:45]} 33. b4 {[%clk 0:01:26]}  f5 {[%clk 0:01:22]} 34. a4 {[%clk 0:01:22]}  Kd4 {[%clk 0:01:19]} 35. Kb3 {[%clk 0:01:18]}  f4 {[%clk 0:01:17]} 36. a5 {[%clk 0:01:12]}  bxa5 {[%clk 0:01:16]} 37. bxa5 {[%clk 0:01:13]}  Kc5 {[%clk 0:01:17]} 38. gxf4 {[%clk 0:01:09]}  gxf4 {[%clk 0:01:17]} 39. Kc3 {[%clk 0:01:09]}  Kb5 {[%clk 0:01:17]} 40. Kd3 {[%clk 0:01:10]}  Kxa5 {[%clk 0:01:18]} 41. Ke4 {[%clk 0:01:10]}  Kb6 {[%clk 0:01:19]} 42. Kxf4 {[%clk 0:01:11]}  Kc7 {[%clk 0:01:20]} 43. Kg5 {[%clk 0:01:11]}  Kd7 {[%clk 0:01:21]} 44. Kh6 {[%clk 0:01:11]}  Ke6 {[%clk 0:01:22]} 45. Kxh7 {[%clk 0:01:12]}  Kf7 {[%clk 0:01:22]} 46. h4 {[%clk 0:01:07]}  Kf6 {[%clk 0:01:21]} 47. h5 {[%clk 0:01:02]}  Kf7 {[%clk 0:01:21]} 48. Kh6 {[%clk 0:00:58]}  Kf6 {[%clk 0:01:21]} 49. f3 {[%clk 0:00:55]}  Kf7 {[%clk 0:01:21]} 50. Kg5 {[%clk 0:00:55]}  Kg7 {[%clk 0:01:22]} 51. f4 {[%clk 0:00:53]}  Kf7 {[%clk 0:01:21]} 52. f5 {[%clk 0:00:52]}  Kg7 {[%clk 0:01:22]} 53. f6+ {[%clk 0:00:52]}  Kh7 {[%clk 0:01:23]} 54. h6 {[%clk 0:00:52]}  Kg8 {[%clk 0:01:22]} 55. Kg6 {[%clk 0:00:50]}  Kh8 {[%clk 0:01:20]} 56. Kf7 {[%clk 0:00:50]} 1-0

[Event "December 12 Late 2023"]
[Site "https://www.chess.com"]
[Date "2023.12.12"]
[Round "8"]
[White "Mendes Aaron Reeve"]
[Black "Nilsson, Joakim"]
[Result "1-0"]
[Board "69"]
[TimeControl "180+1"]
[WhiteFideId "25954938"]
[BlackFideId "1723383"]
[WhiteElo "2622"]
[BlackElo "2434"]
[WhiteTeam "CAN"]
[BlackTeam "SWE"]
[WhiteClock "0:00:15"]
[BlackClock "0:00:14"]

1. e4 {[%clk 0:02:59]}  c5 {[%clk 0:02:54]} 2. Nf3 {[%clk 0:02:59]}  e6 {[%clk 0:02:54]} 3. b3 {[%clk 0:02:58]}  b6 {[%clk 0:02:53]} 4. Bb2 {[%clk 0:02:58]}  Bb7 {[%clk 0:02:54]} 5. e5 {[%clk 0:02:55]}  Nc6 {[%clk 0:02:53]} 6. c4 {[%clk 0:02:55]}  d6 {[%clk 0:02:52]} 7. exd6 {[%clk 0:02:54]}  Nf6 {[%clk 0:02:52]} 8. d4 {[%clk 0:02:50]}  cxd4 {[%clk 0:02:52]} 9. Nxd4 {[%clk 0:02:50]}  Bxd6 {[%clk 0:02:48]} 10. Nb5 {[%clk 0:02:49]}  Bb4+ {[%clk 0:02:44]} 11. Bc3 {[%clk 0:02:48]}  Qxd1+ {[%clk 0:02:43]} 12. Kxd1 {[%clk 0:02:48]}  O-O {[%clk 0:02:42]} 13. Bxb4 {[%clk 0:02:41]}  Nxb4 {[%clk 0:02:41]} 14. f3 {[%clk 0:02:32]}  Rfd8+ {[%clk 0:02:40]} 15. Kc1 {[%clk 0:02:32]}  a6 {[%clk 0:02:39]} 16. N5c3 {[%clk 0:02:31]}  Rac8 {[%clk 0:02:38]} 17. a3 {[%clk 0:02:29]}  Nd3+ {[%clk 0:02:32]} 18. Bxd3 {[%clk 0:02:28]}  Rxd3 {[%clk 0:02:33]} 19. Kc2 {[%clk 0:02:27]}  Rd7 {[%clk 0:02:33]} 20. Rd1 {[%clk 0:02:27]}  Rxd1 {[%clk 0:02:32]} 21. Nxd1 {[%clk 0:02:27]}  b5 {[%clk 0:02:32]} 22. Nb2 {[%clk 0:02:27]}  Nd5 {[%clk 0:02:30]} 23. Kd2 {[%clk 0:02:18]}  Nf4 {[%clk 0:02:27]} 24. g3 {[%clk 0:02:17]}  Ng6 {[%clk 0:02:27]} 25. f4 {[%clk 0:02:15]}  Ne7 {[%clk 0:02:15]} 26. Nc3 {[%clk 0:02:05]}  Nc6 {[%clk 0:02:11]} 27. Rb1 {[%clk 0:01:16]}  Na5 {[%clk 0:02:01]} 28. cxb5 {[%clk 0:00:56]}  Nxb3+ {[%clk 0:02:00]} 29. Kd3 {[%clk 0:00:56]}  axb5 {[%clk 0:01:50]} 30. Nxb5 {[%clk 0:00:50]}  Be4+ {[%clk 0:01:32]} 31. Kxe4 {[%clk 0:00:44]}  Nd2+ {[%clk 0:01:32]} 32. Kd3 {[%clk 0:00:44]}  Nxb1 {[%clk 0:01:33]} 33. Nc4 {[%clk 0:00:40]}  Rd8+ {[%clk 0:01:27]} 34. Kc2 {[%clk 0:00:39]}  Rc8 {[%clk 0:01:26]} 35. Kb3 {[%clk 0:00:33]}  f6 {[%clk 0:01:19]} 36. a4 {[%clk 0:00:33]}  e5 {[%clk 0:01:12]} 37. a5 {[%clk 0:00:30]}  exf4 {[%clk 0:01:04]} 38. gxf4 {[%clk 0:00:29]}  g5 {[%clk 0:01:03]} 39. fxg5 {[%clk 0:00:20]}  fxg5 {[%clk 0:01:04]} 40. a6 {[%clk 0:00:20]}  h5 {[%clk 0:00:55]} 41. Nb6 {[%clk 0:00:19]}  Nd2+ {[%clk 0:00:49]} 42. Kb4 {[%clk 0:00:19]}  Rd8 {[%clk 0:00:43]} 43. a7 {[%clk 0:00:18]}  Nf3 {[%clk 0:00:39]} 44. Nd6 {[%clk 0:00:18]}  Nd4 {[%clk 0:00:27]} 45. Kc5 {[%clk 0:00:17]}  Rxd6 {[%clk 0:00:21]} 46. a8=Q+ {[%clk 0:00:15]}  Rd8 {[%clk 0:00:14]} 47. Qxd8+ {[%clk 0:00:15]} 1-0

[Event "December 12 Late 2023"]
[Site "https://www.chess.com"]
[Date "2023.12.12"]
[Round "8"]
[White "Vlassov, Nikolai"]
[Black "Lopusiewicz, Piotr"]
[Result "1-0"]
[Board "70"]
[TimeControl "180+1"]
[WhiteFideId "4103360"]
[BlackFideId "1116029"]
[WhiteElo "2607"]
[BlackElo "2436"]
[WhiteTeam "FID"]
[BlackTeam "POL"]
[WhiteClock "0:00:03"]
[BlackClock "0:00:00"]

1. e4 {[%clk 0:03:00]}  e5 {[%clk 0:03:00]} 2. Bc4 {[%clk 0:03:00]}  Nf6 {[%clk 0:02:59]} 3. d3 {[%clk 0:03:00]}  Nc6 {[%clk 0:02:59]} 4. Nf3 {[%clk 0:03:01]}  Bc5 {[%clk 0:02:59]} 5. Bg5 {[%clk 0:03:01]}  h6 {[%clk 0:02:56]} 6. Bh4 {[%clk 0:03:01]}  d6 {[%clk 0:02:56]} 7. Nc3 {[%clk 0:03:01]}  g5 {[%clk 0:02:47]} 8. Bg3 {[%clk 0:03:00]}  a6 {[%clk 0:02:45]} 9. a4 {[%clk 0:02:48]}  Qe7 {[%clk 0:02:24]} 10. Nd2 {[%clk 0:02:46]}  h5 {[%clk 0:02:17]} 11. h4 {[%clk 0:02:45]}  Ng4 {[%clk 0:02:05]} 12. Nd5 {[%clk 0:02:33]}  Qd8 {[%clk 0:02:02]} 13. hxg5 {[%clk 0:02:32]}  h4 {[%clk 0:01:36]} 14. Rxh4 {[%clk 0:02:29]}  Rxh4 {[%clk 0:01:29]} 15. Bxh4 {[%clk 0:02:30]}  Be6 {[%clk 0:01:14]} 16. c3 {[%clk 0:02:27]}  Qd7 {[%clk 0:00:54]} 17. b4 {[%clk 0:02:13]}  Ba7 {[%clk 0:00:45]} 18. b5 {[%clk 0:02:06]}  Ne7 {[%clk 0:00:39]} 19. bxa6 {[%clk 0:01:50]}  bxa6 {[%clk 0:00:35]} 20. g6 {[%clk 0:01:40]}  Bxd5 {[%clk 0:00:27]} 21. Bxd5 {[%clk 0:01:28]}  Nxg6 {[%clk 0:00:26]} 22. Bxa8 {[%clk 0:01:18]}  Nxh4 {[%clk 0:00:23]} 23. Qb3 {[%clk 0:01:07]}  Bxf2+ {[%clk 0:00:19]} 24. Kd1 {[%clk 0:00:56]}  Ne3+ {[%clk 0:00:14]} 25. Kc1 {[%clk 0:00:56]}  Qg4 {[%clk 0:00:13]} 26. Kb2 {[%clk 0:00:30]}  Qe2 {[%clk 0:00:09]} 27. Ka3 {[%clk 0:00:15]}  Qxd2 {[%clk 0:00:08]} 28. Ra2 {[%clk 0:00:14]}  Qxd3 {[%clk 0:00:08]} 29. Rxf2 {[%clk 0:00:12]}  Nc4+ {[%clk 0:00:06]} 30. Ka2 {[%clk 0:00:13]}  Ng6 {[%clk 0:00:04]} 31. Bd5 {[%clk 0:00:12]}  Nb6 {[%clk 0:00:03]} 32. Bxf7+ {[%clk 0:00:12]}  Kd7 {[%clk 0:00:04]} 33. Bxg6 {[%clk 0:00:12]}  Qe3 {[%clk 0:00:01]} 34. Be8+ {[%clk 0:00:07]}  Kd8 {[%clk 0:00:01]} 35. Rf8 {[%clk 0:00:04]}  Qe2+ {[%clk 0:00:01]} 36. Qb2 {[%clk 0:00:04]}  Qc4+ {[%clk 0:00:01]} 37. Kb1 {[%clk 0:00:03]}  Qd3+ {[%clk 0:00:00]} 38. Qc2 {[%clk 0:00:03]} 1-0